[Event "CZE-ch U12 2020"]
[Site "Kouty nad Desnou"]
[Date "2020.03.11"]
[Round "6.5"]
[White "Tichy, Tomas"]
[Black "Hladky, Tadeas"]
[Result "1/2-1/2"]
[ECO "D70"]
[WhiteElo "1810"]
[BlackElo "1773"]
[Annotator "NA RC"]
[PlyCount "112"]
[EventDate "2020.03.07"]
[EventCountry "CZE"]
[SourceTitle "playchess.com"]
[Source "ChessBase"]
[SourceQuality "1"]
[TimeControl "5400+30"]

{[%evp 8,99,8,32767,32767,32767,32767,0,40,18,34,12,26,0,0,-2,-13,-75,0,5,31,11,34,0,25,1,9,-31,32767,32767,32767,-16,-16,-27,0,-68,-50,-64,0,-222,-79,-237,0,10,12,0,39,0,46,-158,-57,-151,0,-273,-167,32767,32767,32767,-96,-95,-48,-57,-6,32767,0,-11,-4,0,-4,-46,0,0,0,-117,0,0,34,0,0,0,0,0,0,0,0,-1875,0,0,0,0,0,0,0,0]} 1. d4 {[%emt 0:00:00]} Nf6 {[%emt 0:00:00]} 2. c4 {[%emt 0:00:00]} g6 {[%emt 0:00:00]} 3. f3 {[%emt 0:00:10]} d5 {[%emt 0:01:01]} 4. cxd5 {[%emt 0:00:24]} Nxd5 {[%emt 0:00:23]} 5. e4 {[%emt 0:00:15]} Nb6 {[%emt 0:00:08]} 6. Nc3 {[%emt 0:00:20]} Bg7 {[%emt 0:00:08]} 7. Be3 {[%emt 0:00:17]} Nc6 {[%emt 0:00:31]} 8. Bb5 {[%emt 0:00:52] D70: Grünfeld: Unusual White 3rd moves (met by ...d5).} (8. d5 $5 {[%cal Rd5c6]} Ne5 9. f4 $14) 8... Bd7 {[%emt 0:01:19] [#]} 9. Qd2 $146 {[%emt 0:01:12]} ({Predecessor:} 9. Nge2 O-O 10. O-O Nb4 11. Bd3 Nxd3 12. Qxd3 c6 13. b3 a5 14. a4 Nc8 15. Qd2 Re8 {1-0 (36) Duda,J (2684)-Tomaszewski,R (2297) Zgierz 2017}) 9... a6 {[%emt 0:00:22]} 10. Be2 {[%emt 0:01:19]} e5 {[%emt 0:02:30]} 11. d5 {[%emt 0:03:07]} Nd4 {[%emt 0:00:17]} 12. O-O-O {[%emt 0:02:10]} (12. Bd3 $11 {keeps the balance.}) 12... Nxe2+ {[%emt 0:00:18]} 13. Qxe2 {[%emt 0:01:54]} Na4 {[%emt 0:02:35]} 14. Nxa4 {[%emt 0:06:08]} Bxa4 {[%emt 0:00:02]} 15. b3 {[%emt 0:02:42]} Bb5 {[%emt 0:00:06]} 16. Qd2 {[%emt 0:02:03]} Qd6 {[%emt 0:03:39]} 17. Kb1 {[%emt 0:10:18]} Bd7 {[%emt 0:02:46]} 18. Rc1 {[%emt 0:07:58]} b6 {[%emt 0:03:09]} 19. g4 {[%emt 0:07:57]} a5 {[%emt 0:01:40]} 20. Qc3 {[%emt 0:06:23]} Rc8 {[%emt 0:01:42]} ({Black should play} 20... a4 $1 $15) 21. Qc2 {[%emt 0:05:13]} (21. Ne2 $11) 21... a4 {[%emt 0:03:31]} 22. bxa4 {[%emt 0:08:40]} O-O {[%emt 0:01:49]} 23. h4 $2 {[%emt 0:02:09]} (23. Ne2 $1 $11 {and White has nothing to worry.}) 23... Ra8 {[%emt 0:07:57]} (23... c6 $19 {is more deadly.} 24. Rd1 cxd5 {[%mdl 64] Discovered Attack} 25. Rxd5 Qe7) 24. Bd2 $2 {[%emt 0:07:48]} (24. Qxc7 $15 Qb4+ 25. Ka1) 24... Bxa4 $2 {[%emt 0:04:51]} (24... Rxa4 $19 25. Ne2 Rfa8) 25. Qxc7 {[%emt 0:03:01]} Qa3 {[%emt 0:00:18]} 26. Qc3 {[%emt 0:00:39]} Qd6 {[%emt 0:01:00]} 27. Qb4 {[%emt 0:00:49]} Qd7 $1 {[%emt 0:00:31]} 28. d6 $2 $11 {[%emt 0:01:50]} ({White should try} 28. Qb2 $11) 28... Qe6 {[%emt 0:00:59]} (28... Bb5 $17 29. Rh2 Rfc8 30. Rxc8+ Rxc8) 29. Qc4 {[%emt 0:02:22]} (29. Ne2 $1 $15) 29... Qd7 {[%emt 0:00:43]} (29... Qxd6 $17 30. Bb4 Qd7 31. Bxf8 Bxf8) 30. Bb4 $2 {[%emt 0:03:04]} Rfc8 {[%emt 0:00:59]} 31. Qd3 {[%emt 0:03:13]} Bb5 {[%emt 0:00:24]} 32. Qd2 {[%emt 0:00:59]} Rxc1+ {[%emt 0:02:56]} 33. Kxc1 {[%emt 0:01:40]} Bf8 {[%emt 0:03:35]} 34. Rh2 {[%emt 0:01:21]} Rd8 {[%emt 0:01:24]} 35. Qd5 {[%emt 0:01:27]} Bxd6 {[%emt 0:02:17]} 36. Bxd6 {[%emt 0:01:34]} Qxd6 {[%emt 0:01:17]} 37. Qxd6 {[%emt 0:00:55]} Rxd6 {[%emt 0:00:06]} 38. Rc2 {[%emt 0:02:36]} Ba4 {[%emt 0:00:44]} 39. Rd2 $1 {[%emt 0:00:29]} Rc6+ {[%emt 0:00:26]} 40. Kb1 {[%emt 0:00:30]} (40. Kb2 $11) 40... Rc5 {[%emt 0:05:11]} (40... Rc3 $17) 41. Ne2 {[%emt 0:01:11]} Rb5+ {[%emt 0:02:46]} 42. Rb2 {[%emt 0:01:24]} Rxb2+ {[%emt 0:00:12]} 43. Kxb2 Kg7 {[%emt 0:00:10]} 44. Nc3 {[%emt 0:01:01]} Bc6 {[%emt 0:00:44]} 45. Kb3 {[%emt 0:00:26]} f5 {[%emt 0:00:53]} 46. Nd5 $2 {[%emt 0:01:12] [#]} (46. g5 $11) 46... fxe4 $2 {[%emt 0:01:38]} ({Black should play} 46... Bxd5+ $1 $19 47. exd5 e4) 47. fxe4 {[%emt 0:00:19]} Bxd5+ {[%emt 0:03:59]} 48. exd5 {[%emt 0:00:03]} Kf6 {[%emt 0:00:09]} 49. Kc4 {[%emt 0:01:08]} Ke7 {[%emt 0:00:12]} 50. Kb5 $11 {[%emt 0:01:06]} Kd6 {[%emt 0:01:15]} 51. Kc4 {[%emt 0:00:30]} h6 {[%emt 0:00:27]} 52. a4 {[%emt 0:00:28]} Kd7 {[%emt 0:06:01]} 53. Kb5 {[%emt 0:00:53]} Kc7 {[%emt 0:01:26]} 54. Kb4 {[%emt 0:00:20]} Kd6 {[%emt 0:07:49]} 55. Kc4 {[%emt 0:00:08]} Ke7 {[%emt 0:00:30]} 56. Kd3 {[%emt 0:00:36]} Kd7 {[%emt 0:00:09]} 1/2-1/2

[Event "CZE-ch U12 2020"]
[Site "Kouty nad Desnou"]
[Date "2020.03.11"]
[Round "6.6"]
[White "Jasso, Matej"]
[Black "Martirosyan, David"]
[Result "1-0"]
[ECO "B38"]
[WhiteElo "1582"]
[BlackElo "1522"]
[Annotator "NA"]
[PlyCount "51"]
[EventDate "2020.03.07"]
[EventCountry "CZE"]
[SourceTitle "playchess.com"]
[Source "ChessBase"]
[SourceQuality "1"]
[TimeControl "5400+30"]

1. e4 c5 {[%emt 0:00:00]} 2. Nf3 {[%emt 0:00:00]} Nc6 {[%emt 0:00:57]} 3. d4 {[%emt 0:00:50]} cxd4 {[%emt 0:00:08]} 4. Nxd4 {[%emt 0:00:06]} g6 {[%emt 0:00:51]} 5. c4 {[%emt 0:01:02]} Bg7 {[%emt 0:01:17]} 6. Be3 {[%emt 0:00:46]} Nf6 {[%emt 0:01:11]} 7. Nc3 {[%emt 0:01:02]} d6 {[%emt 0:00:57]} 8. f3 {[%emt 0:02:32]} O-O {[%emt 0:01:26]} 9. Be2 {[%emt 0:02:55]} Bd7 {[%emt 0:02:07]} 10. O-O Rc8 {[%emt 0:10:44]} 11. b3 {[%emt 0:09:34]} a6 {[%emt 0:04:23]} 12. Rc1 {[%emt 0:05:40]} Qa5 {[%emt 0:06:12]} 13. a4 {[%emt 0:04:37]} Nxd4 {[%emt 0:11:02]} 14. Bxd4 {[%emt 0:03:10]} Rc6 {[%emt 0:03:35]} 15. f4 {[%emt 0:07:46]} Be6 {[%emt 0:06:47]} 16. Bf3 {[%emt 0:05:16]} Rc7 {[%emt 0:08:50]} 17. Qd2 {[%emt 0:04:30]} Nd7 {[%emt 0:01:44]} 18. Bxg7 {[%emt 0:01:59]} Kxg7 {[%emt 0:01:31]} 19. Kh1 {[%emt 0:04:19]} Nc5 {[%emt 0:01:37]} 20. Rb1 {[%emt 0:02:41]} Qb4 {[%emt 0:04:39]} 21. f5 {[%emt 0:03:16]} gxf5 {[%emt 0:09:06]} 22. exf5 {[%emt 0:00:50]} Bxf5 {[%emt 0:01:34]} 23. Qg5+ {[%emt 0:00:28]} Bg6 {[%emt 0:00:03]} 24. Nd5 {[%emt 0:00:19]} Ne6 {[%emt 0:05:49]} 25. Qxg6+ {[%emt 0:00:41]} hxg6 {[%emt 0:01:06]} 26. Nxb4 {[%emt 0:00:16]} 1-0

[Event "CZE-ch U12 2020"]
[Site "Kouty nad Desnou"]
[Date "2020.03.11"]
[Round "6.7"]
[White "Setina, Vaclav"]
[Black "Buchta, Bartolomej"]
[Result "0-1"]
[ECO "B22"]
[WhiteElo "1507"]
[BlackElo "1508"]
[Annotator "NA RC"]
[PlyCount "117"]
[EventDate "2020.03.07"]
[EventCountry "CZE"]
[SourceTitle "playchess.com"]
[Source "ChessBase"]
[SourceQuality "1"]
[TimeControl "5400+30"]

1. e4 {[%emt 0:00:00]} c5 {[%emt 0:00:00]} 2. c3 {[%emt 0:00:00]} d5 {[%emt 0:00:00]} 3. exd5 {[%emt 0:00:00]} Qxd5 {[%emt 0:00:00]} 4. d4 {[%emt 0:00:00]} e6 {[%emt 0:00:01]} 5. Nf3 {[%emt 0:00:08]} Nf6 {[%emt 0:00:52]} 6. Be3 {[%emt 0:00:34]} cxd4 {[%emt 0:00:20]} 7. cxd4 {[%emt 0:00:12]} Bb4+ 8. Nc3 {[%emt 0:12:10]} O-O {[%emt 0:12:47]} 9. Be2 {[%emt 0:03:59]} b6 {[%emt 0:05:31]} 10. O-O {[%emt 0:01:11]} Bxc3 {[%emt 0:00:33]} 11. bxc3 {[%emt 0:00:58]} Ba6 {[%emt 0:00:24]} 12. Bxa6 {[%emt 0:02:26]} Nxa6 {[%emt 0:00:08]} 13. Qb3 {[%emt 0:05:19]} Rac8 {[%emt 0:01:16]} 14. Nd2 {[%emt 0:02:36]} Nc7 {[%emt 0:07:01]} 15. c4 {[%emt 0:01:50]} Qd6 {[%emt 0:12:13]} 16. f3 {[%emt 0:05:25]} Rfe8 {[%emt 0:03:35]} 17. Ne4 {[%emt 0:02:12]} Qc6 {[%emt 0:09:00]} 18. Nxf6+ {[%emt 0:04:33]} gxf6 {[%emt 0:00:40]} 19. Rfd1 {[%emt 0:02:23]} b5 {[%emt 0:02:55]} 20. cxb5 {[%emt 0:17:57]} Qxb5 {[%emt 0:00:39]} 21. d5 {[%emt 0:13:05]} Qxb3 {[%emt 0:01:32]} 22. axb3 {[%emt 0:01:53]} Nxd5 {[%emt 0:00:31]} 23. Bxa7 {[%emt 0:00:39]} Re7 {[%emt 0:03:40]} 24. Bf2 {[%emt 0:07:33]} Rb7 {[%emt 0:05:07]} 25. Rdb1 {[%emt 0:05:35]} Rc2 {[%emt 0:09:26]} 26. Be1 {[%emt 0:04:13]} Nf4 {[%emt 0:02:12]} 27. Ra4 {[%emt 0:03:41]} e5 {[%emt 0:06:47]} 28. Kf1 {[%emt 0:02:47]} Kh8 {[%emt 0:06:41]} 29. Bh4 {[%emt 0:00:29]} Rb6 {[%emt 0:01:21]} 30. Bf2 {[%emt 0:00:02]} Rbc6 {[%emt 0:01:21]} 31. Raa1 {[%emt 0:00:51]} R6c3 {[%emt 0:01:41]} 32. b4 {[%emt 0:00:39]} Nd3 {[%emt 0:01:56]} 33. Bh4 {[%emt 0:00:18]} Kg7 {[%emt 0:00:56]} 34. b5 {[%emt 0:00:34]} Nb2 {[%emt 0:03:08]} 35. b6 {[%emt 0:00:27]} Rb3 {[%emt 0:00:21]} 36. Bf2 {[%emt 0:00:07]} Kg6 {[%emt 0:01:05]} 37. Ra7 {[%emt 0:00:53]} Rxf2+ {[%emt 0:00:45]} 38. Kxf2 {[%emt 0:00:29]} Nd3+ {[%emt 0:00:04]} 39. Ke3 {[%emt 0:00:38]} Rxb1 {[%emt 0:00:25]} 40. Kxd3 {[%emt 0:00:01]} Rxb6 {[%emt 0:00:12]} 41. Ra2 {[%emt 0:00:07]} f5 {[%emt 0:00:40]} 42. Ke3 {[%emt 0:01:14]} Rb3+ {[%emt 0:00:40]} 43. Kf2 {[%emt 0:00:01]} e4 {[%emt 0:00:19]} 44. fxe4 {[%emt 0:00:03]} fxe4 {[%emt 0:00:07]} 45. Re2 {[%emt 0:00:13]} f5 {[%emt 0:00:19]} 46. g3 {[%emt 0:01:32]} Kg5 {[%emt 0:00:42]} 47. Ra2 {[%emt 0:00:50]} h5 {[%emt 0:01:08]} 48. h4+ {[%emt 0:00:40]} Kg4 {[%emt 0:00:42]} 49. Ra8 {[%emt 0:00:28]} Rb2+ {[%emt 0:01:20]} 50. Ke3 {[%emt 0:00:20]} Rb3+ {[%emt 0:00:12]} 51. Kf2 {[%emt 0:00:08]} Rf3+ {[%emt 0:00:20]} 52. Kg2 {[%emt 0:00:44]} Rxg3+ {[%emt 0:00:33]} 53. Kh2 {[%emt 0:00:09]} Rh3+ {[%emt 0:01:30]} 54. Kg2 {[%emt 0:00:03]} Rg3+ {[%emt 0:00:20]} 55. Kh2 {[%emt 0:00:01]} Kxh4 {[%emt 0:00:28]} 56. Rf8 {[%emt 0:00:04]} Rh3+ {[%emt 0:00:21]} 57. Kg2 {[%emt 0:00:04]} Rf3 {[%emt 0:00:38]} 58. Rg8 {[%emt 0:00:51]} Rf4 {[%emt 0:00:19]} 59. Kh2 {[%emt 0:00:40]} 0-1

[Event "CZE-ch U12 2020"]
[Site "Kouty nad Desnou"]
[Date "2020.03.11"]
[Round "6.8"]
[White "Veverka, Vladimir"]
[Black "Sedmihradsky, Tomas"]
[Result "1/2-1/2"]
[ECO "A85"]
[WhiteElo "1656"]
[BlackElo "1024"]
[Annotator "NA"]
[PlyCount "90"]
[EventDate "2020.03.07"]
[EventCountry "CZE"]
[SourceTitle "playchess.com"]
[Source "ChessBase"]
[SourceQuality "1"]
[TimeControl "5400+30"]

1. d4 {[%emt 0:00:00]} f5 {[%emt 0:00:00]} 2. c4 {[%emt 0:01:58]} Nf6 {[%emt 0:00:00]} 3. Nc3 {[%emt 0:00:37]} g6 {[%emt 0:00:00]} 4. Bf4 {[%emt 0:03:43]} d6 {[%emt 0:01:21]} 5. e3 {[%emt 0:00:50]} Bg7 {[%emt 0:00:50]} 6. Nf3 {[%emt 0:03:01]} O-O {[%emt 0:01:00]} 7. h3 {[%emt 0:06:51]} Qe8 {[%emt 0:02:40]} 8. Be2 {[%emt 0:08:42]} Nbd7 {[%emt 0:08:57]} 9. Nb5 {[%emt 0:06:44]} Qd8 {[%emt 0:03:17]} 10. c5 {[%emt 0:16:13]} c6 {[%emt 0:12:53]} 11. Qb3+ {[%emt 0:13:04]} Kh8 {[%emt 0:02:47]} 12. Nc3 {[%emt 0:10:01]} d5 {[%emt 0:05:14]} 13. Ng5 {[%emt 0:01:39]} Nb8 {[%emt 0:01:25]} 14. Qa3 {[%emt 0:01:41]} Bd7 {[%emt 0:01:33]} 15. Na4 {[%emt 0:02:07]} Qa5+ {[%emt 0:02:54]} 16. b4 {[%emt 0:00:34]} Qd8 {[%emt 0:01:31]} 17. Nb6 {[%emt 0:00:25]} axb6 {[%emt 0:00:51]} 18. Qxa8 {[%emt 0:00:13]} bxc5 {[%emt 0:02:11]} 19. bxc5 {[%emt 0:01:29]} h6 {[%emt 0:02:07]} 20. Nf3 {[%emt 0:05:14]} Ne4 {[%emt 0:02:44]} 21. O-O {[%emt 0:06:34]} g5 {[%emt 0:02:41]} 22. Be5 {[%emt 0:01:25]} g4 {[%emt 0:02:04]} 23. hxg4 {[%emt 0:03:11]} fxg4 {[%emt 0:00:20]} 24. Bxg7+ {[%emt 0:01:04]} Kxg7 {[%emt 0:00:12]} 25. Ne5 {[%emt 0:01:23]} h5 {[%emt 0:01:38]} 26. Bd3 {[%emt 0:02:10]} Nd2 {[%emt 0:08:15]} 27. Rfd1 {[%emt 0:00:41]} Nf3+ {[%emt 0:01:22]} 28. gxf3 {[%emt 0:01:48]} gxf3 {[%emt 0:00:14]} 29. Kf1 {[%emt 0:00:23]} h4 {[%emt 0:00:26]} 30. Ke1 {[%emt 0:00:29]} Bh3 {[%emt 0:01:13]} 31. Kd2 {[%emt 0:00:35]} Bg2 {[%emt 0:00:35]} 32. Rg1 {[%emt 0:00:30]} h3 {[%emt 0:00:33]} 33. Rab1 {[%emt 0:00:39]} Rh8 {[%emt 0:14:30]} 34. Nxf3 {[%emt 0:00:30]} Kf6 {[%emt 0:00:35]} 35. Nh2 {[%emt 0:00:26]} Qf8 {[%emt 0:00:35]} 36. Rxb7 {[%emt 0:00:22]} Ke6 {[%emt 0:00:24]} 37. Ke2 {[%emt 0:00:29]} Qe8 {[%emt 0:01:40]} 38. a4 {[%emt 0:00:36]} Qh5+ {[%emt 0:01:28]} 39. Ke1 {[%emt 0:00:20]} Nd7 {[%emt 0:00:43]} 40. Qa7 {[%emt 0:00:25]} Rd8 {[%emt 0:00:49]} 41. Be2 {[%emt 0:00:27]} Qh7 {[%emt 0:01:19]} 42. Bg4+ {[%emt 0:00:20]} Kf7 43. Bxd7 {[%emt 0:00:48]} Rxd7 {[%emt 0:00:53]} 44. Qb6 {[%emt 0:00:36]} Rxb7 {[%emt 0:00:44]} 45. Qxb7 {[%emt 0:00:08]} Qc2 {[%emt 0:00:08]} 1/2-1/2

[Event "CZE-ch U12 2020"]
[Site "Kouty nad Desnou"]
[Date "2020.03.11"]
[Round "6.9"]
[White "Nguyen, Thai Dang Vi"]
[Black "Kubin, Tomas Daniel"]
[Result "1-0"]
[ECO "B01"]
[WhiteElo "1510"]
[BlackElo "1484"]
[Annotator "NA RC"]
[PlyCount "57"]
[EventDate "2020.03.07"]
[EventCountry "CZE"]
[SourceTitle "playchess.com"]
[Source "ChessBase"]
[SourceQuality "1"]
[TimeControl "5400+30"]

1. e4 {[%emt 0:00:00]} d5 {[%emt 0:00:00]} 2. exd5 {[%emt 0:00:00]} Nf6 {[%emt 0:00:00]} 3. d4 {[%emt 0:00:00]} Nxd5 {[%emt 0:00:00]} 4. Nf3 {[%emt 0:00:03]} g6 {[%emt 0:00:04]} 5. c4 {[%emt 0:00:48]} Nb6 {[%emt 0:00:14]} 6. Nc3 {[%emt 0:00:45]} Bg7 {[%emt 0:00:09]} 7. c5 {[%emt 0:00:47]} Nd5 {[%emt 0:00:07]} 8. Bc4 {[%emt 0:00:07]} c6 {[%emt 0:00:04]} 9. O-O {[%emt 0:00:20]} O-O {[%emt 0:00:12]} 10. Re1 {[%emt 0:00:42]} h6 {[%emt 0:11:09]} 11. h3 {[%emt 0:02:30]} Nxc3 {[%emt 0:06:36]} 12. bxc3 {[%emt 0:00:14]} b5 {[%emt 0:00:18]} 13. cxb6 {[%emt 0:02:32]} axb6 {[%emt 0:00:19]} 14. Ne5 {[%emt 0:02:01]} b5 {[%emt 0:12:58]} 15. Bb3 {[%emt 0:01:28]} Bb7 {[%emt 0:07:14]} 16. Nxg6 {[%emt 0:01:01]} Re8 {[%emt 0:02:38]} 17. Ne5 {[%emt 0:01:45]} e6 {[%emt 0:07:09]} 18. Qh5 {[%emt 0:01:24]} Qf6 {[%emt 0:12:45]} 19. Ng4 {[%emt 0:01:45]} Qg6 {[%emt 0:01:53]} 20. Qxg6 {[%emt 0:00:49]} fxg6 {[%emt 0:00:08]} 21. Bxh6 {[%emt 0:02:17]} Bxh6 {[%emt 0:01:56]} 22. Nxh6+ {[%emt 0:00:09]} Kg7 {[%emt 0:00:13]} 23. Ng4 {[%emt 0:00:15]} Bc8 {[%emt 0:04:35]} 24. Re3 {[%emt 0:01:05]} Ra7 {[%emt 0:02:16]} 25. Rae1 {[%emt 0:00:46]} Rae7 {[%emt 0:00:38]} 26. Ne5 {[%emt 0:00:27]} Kh7 {[%emt 0:06:57]} 27. Rg3 {[%emt 0:01:10]} Rg8 {[%emt 0:01:18]} 28. Bc2 {[%emt 0:00:27]} Reg7 {[%emt 0:07:08]} 29. Re4 {[%emt 0:00:29]} 1-0

[Event "CZE-ch U12 2020"]
[Site "Kouty nad Desnou"]
[Date "2020.03.11"]
[Round "6.10"]
[White "Matusik, Ondrej"]
[Black "Sigut, Ondrej"]
[Result "0-1"]
[ECO "B35"]
[WhiteElo "1482"]
[BlackElo "1274"]
[Annotator "NA RC"]
[PlyCount "134"]
[EventDate "2020.03.07"]
[EventCountry "CZE"]
[SourceTitle "playchess.com"]
[Source "ChessBase"]
[SourceQuality "1"]
[TimeControl "5400+30"]

1. e4 {[%emt 0:00:00]} c5 {[%emt 0:00:00]} 2. Nf3 {[%emt 0:00:00]} Nc6 {[%emt 0:00:00]} 3. d4 {[%emt 0:00:00]} cxd4 {[%emt 0:00:00]} 4. Nxd4 {[%emt 0:00:00]} g6 {[%emt 0:00:00]} 5. Nc3 {[%emt 0:00:04]} Bg7 {[%emt 0:00:00]} 6. Be3 {[%emt 0:00:47]} Nf6 {[%emt 0:00:10]} 7. Bc4 {[%emt 0:03:54]} O-O {[%emt 0:00:42]} 8. Bb3 {[%emt 0:00:40]} Ng4 {[%emt 0:01:48]} 9. Qxg4 {[%emt 0:23:25]} Nxd4 {[%emt 0:01:09]} 10. O-O {[%emt 0:07:12]} Nxb3 {[%emt 0:02:50]} 11. cxb3 {[%emt 0:01:13]} d6 {[%emt 0:05:41]} 12. Qe2 {[%emt 0:06:05]} Be6 {[%emt 0:08:49]} 13. Qd2 {[%emt 0:02:24]} Qd7 {[%emt 0:09:43]} 14. Bh6 {[%emt 0:03:27]} a6 {[%emt 0:02:09]} 15. Bxg7 {[%emt 0:03:48]} Kxg7 {[%emt 0:00:25]} 16. f4 {[%emt 0:01:16]} Qd8 {[%emt 0:04:04]} 17. f5 {[%emt 0:02:31]} Bd7 {[%emt 0:03:00]} 18. Rf3 {[%emt 0:02:32]} Rh8 {[%emt 0:05:19]} 19. Rh3 {[%emt 0:01:45]} Qb6+ {[%emt 0:02:41]} 20. Kh1 {[%emt 0:00:59]} Bc6 {[%emt 0:01:11]} 21. Qh6+ {[%emt 0:09:25]} Kg8 {[%emt 0:01:40]} 22. Rf1 {[%emt 0:00:57]} Qd4 {[%emt 0:03:00]} 23. Qf4 {[%emt 0:07:34]} Qg7 {[%emt 0:03:06]} 24. Ne2 {[%emt 0:09:32]} Bb5 {[%emt 0:03:29]} 25. Rf2 {[%emt 0:00:41]} Bxe2 {[%emt 0:00:29]} 26. Rxe2 {[%emt 0:00:07]} Rc8 {[%emt 0:01:54]} 27. Rf2 {[%emt 0:01:15]} Qe5 {[%emt 0:03:24]} 28. Rhf3 {[%emt 0:02:39]} Qxf4 {[%emt 0:02:00]} 29. Rxf4 {[%emt 0:00:08]} Kg7 {[%emt 0:00:35]} 30. h3 {[%emt 0:01:02]} f6 {[%emt 0:02:26]} 31. g4 {[%emt 0:01:00]} g5 {[%emt 0:01:02]} 32. R4f3 {[%emt 0:00:24]} h5 {[%emt 0:01:35]} 33. Kg2 {[%emt 0:01:03]} hxg4 {[%emt 0:01:01]} 34. hxg4 {[%emt 0:00:10]} Rh4 {[%emt 0:01:00]} 35. Rg3 {[%emt 0:00:53]} Rch8 {[%emt 0:00:51]} 36. Kf3 {[%emt 0:01:16]} Rc8 {[%emt 0:01:26]} 37. Kg2 {[%emt 0:00:44]} Rc5 {[%emt 0:00:27]} 38. Re2 {[%emt 0:00:27]} Kf7 {[%emt 0:00:35]} 39. Rf2 {[%emt 0:01:09]} d5 {[%emt 0:00:56]} 40. Kf3 {[%emt 0:02:16]} dxe4+ {[%emt 0:00:57]} 41. Kxe4 {[%emt 0:00:23]} Rb5 {[%emt 0:01:09]} 42. Rfg2 {[%emt 0:00:47]} Re5+ {[%emt 0:01:05]} 43. Kd4 {[%emt 0:00:21]} e6 {[%emt 0:01:21]} 44. fxe6+ {[%emt 0:01:11]} Kxe6 {[%emt 0:00:55]} 45. Rc3 {[%emt 0:02:29]} Rh7 {[%emt 0:00:51]} 46. Kd3 {[%emt 0:00:54]} Rd7+ {[%emt 0:00:45]} 47. Kc2 {[%emt 0:00:08]} Re4 {[%emt 0:01:00]} 48. Rc4 {[%emt 0:00:48]} Re5 {[%emt 0:01:25]} 49. Rc3 {[%emt 0:00:12]} Rdd5 {[%emt 0:04:13]} 50. Kc1 {[%emt 0:00:42]} Rc5 {[%emt 0:02:13]} 51. Kc2 {[%emt 0:00:19]} f5 {[%emt 0:02:08]} 52. gxf5+ {[%emt 0:00:26]} Kxf5 {[%emt 0:00:25]} 53. Rf2+ {[%emt 0:00:18]} Kg6 {[%emt 0:00:24]} 54. Rg2 {[%emt 0:00:58]} Rf5 {[%emt 0:01:54]} 55. Kd3 {[%emt 0:00:40]} Rf3+ 56. Kc2 {[%emt 0:00:06]} Rcf5 {[%emt 0:01:43]} 57. Rc7 {[%emt 0:00:46]} Rf7 {[%emt 0:00:09]} 58. Rc5 {[%emt 0:00:20]} Rf2+ {[%emt 0:02:04]} 59. Rxf2 {[%emt 0:00:07]} Rxf2+ {[%emt 0:00:05]} 60. Kc3 {[%emt 0:00:41]} g4 {[%emt 0:03:08]} 61. Rd5 {[%emt 0:00:52]} Rf5 {[%emt 0:02:10]} 62. Rd2 {[%emt 0:00:42]} Kg5 {[%emt 0:00:17]} 63. Kd3 {[%emt 0:01:04]} Rd5+ {[%emt 0:01:25]} 64. Ke3 {[%emt 0:00:09]} Rxd2 {[%emt 0:00:17]} 65. Kxd2 {[%emt 0:00:06]} Kf4 {[%emt 0:00:04]} 66. Ke2 {[%emt 0:00:22]} Kg3 {[%emt 0:01:49]} 67. Kf1 {[%emt 0:00:49]} Kh2 {[%emt 0:00:06]} 0-1

[Event "CZE-ch U12 2020"]
[Site "Kouty nad Desnou"]
[Date "2020.03.11"]
[Round "6.11"]
[White "Hobza, Richard"]
[Black "Matus, Jakub"]
[Result "1/2-1/2"]
[ECO "D05"]
[WhiteElo "1251"]
[BlackElo "1240"]
[Annotator "NA RC"]
[PlyCount "62"]
[EventDate "2020.03.07"]
[EventCountry "CZE"]
[SourceTitle "playchess.com"]
[Source "ChessBase"]
[SourceQuality "1"]
[TimeControl "5400+30"]

1. d4 {[%emt 0:00:00]} d5 {[%emt 0:00:00]} 2. Nf3 {[%emt 0:00:00]} Nf6 {[%emt 0:00:00]} 3. e3 {[%emt 0:00:00]} e6 {[%emt 0:00:06]} 4. Bd3 {[%emt 0:01:40]} Be7 {[%emt 0:01:07]} 5. Nbd2 {[%emt 0:02:10]} O-O {[%emt 0:02:53]} 6. O-O {[%emt 0:02:46]} Nbd7 {[%emt 0:02:45]} 7. e4 {[%emt 0:03:47]} dxe4 {[%emt 0:04:23]} 8. Nxe4 {[%emt 0:00:20]} Nxe4 {[%emt 0:00:11]} 9. Bxe4 {[%emt 0:00:24]} c5 {[%emt 0:00:19]} 10. c3 {[%emt 0:04:22]} Nf6 {[%emt 0:05:42]} 11. Bc2 {[%emt 0:03:50]} Qc7 {[%emt 0:03:45]} 12. Bg5 {[%emt 0:06:56]} Rd8 {[%emt 0:03:26]} 13. Qe2 {[%emt 0:09:45]} b6 {[%emt 0:02:19]} 14. Rad1 {[%emt 0:07:12]} Bb7 {[%emt 0:03:52]} 15. Bxf6 {[%emt 0:03:45]} Bxf6 {[%emt 0:00:06]} 16. dxc5 {[%emt 0:01:44]} Rxd1 {[%emt 0:00:52]} 17. Rxd1 {[%emt 0:00:36]} Qxc5 {[%emt 0:00:24]} 18. Be4 {[%emt 0:07:30]} Bxe4 {[%emt 0:04:22]} 19. Qxe4 {[%emt 0:00:14]} Rc8 {[%emt 0:01:28]} 20. h3 {[%emt 0:03:37]} h6 {[%emt 0:03:11]} 21. Rd7 {[%emt 0:05:43]} a5 {[%emt 0:03:18]} 22. Qb7 {[%emt 0:07:48]} Rf8 {[%emt 0:02:59]} 23. Rd2 {[%emt 0:03:24]} Rd8 {[%emt 0:03:08]} 24. Rxd8+ {[%emt 0:01:30]} Bxd8 {[%emt 0:00:07]} 25. Qe4 {[%emt 0:01:07]} Bf6 {[%emt 0:02:51]} 26. Qd3 {[%emt 0:01:01]} Qd5 {[%emt 0:01:34]} 27. Qxd5 {[%emt 0:02:46]} exd5 {[%emt 0:00:07]} 28. Kf1 {[%emt 0:00:14]} Kf8 {[%emt 0:00:09]} 29. Ke2 {[%emt 0:00:29]} Ke7 {[%emt 0:00:05]} 30. Kd3 {[%emt 0:00:33]} Kd6 {[%emt 0:00:16]} 31. Nd4 {[%emt 0:00:31]} Ke5 {Ke4+} 1/2-1/2